[Event "*** Titled Tuesday Blitz"]
[Site "Chess.com"]
[Date "2020.05.12"]
[Round "9"]
[White "Riptide27"]
[Black "Piotrek1979"]
[Result "1-0"]
[WhiteElo "2594"]
[BlackElo "2367"]
[TimeControl "180+1"]
[EndTime "11:42:58 PDT"]
[Termination "Riptide27 won on time"]

1. d4 {[%clk 0:03:00.9]} 1... Nf6 {[%clk 0:02:58.7]} 2. c4 {[%clk 0:03:00.7]}
2... c5 {[%clk 0:02:59.4]} 3. d5 {[%clk 0:02:59.1]} 3... e5 {[%clk 0:03:00]} 4.
Nc3 {[%clk 0:02:56.3]} 4... d6 {[%clk 0:03:00.5]} 5. e4 {[%clk 0:02:55.6]} 5...
Be7 {[%clk 0:03:01.2]} 6. Be2 {[%clk 0:02:54.6]} 6... Nbd7 {[%clk 0:03:01.5]} 7.
Nf3 {[%clk 0:02:49.2]} 7... h5 {[%clk 0:02:58.5]} 8. a3 {[%clk 0:02:45]} 8... h4
{[%clk 0:02:57.6]} 9. h3 {[%clk 0:02:43.7]} 9... Nf8 {[%clk 0:02:56]} 10. b4
{[%clk 0:02:39.8]} 10... b6 {[%clk 0:02:56.2]} 11. bxc5 {[%clk 0:02:31]} 11...
bxc5 {[%clk 0:02:56.1]} 12. Rb1 {[%clk 0:02:30.2]} 12... Ng6 {[%clk 0:02:55.3]}
13. Qa4+ {[%clk 0:02:28.6]} 13... Bd7 {[%clk 0:02:51.1]} 14. Qa6 {[%clk
0:02:28.4]} 14... Bc8 {[%clk 0:02:36.1]} 15. Qc6+ {[%clk 0:02:20]} 15... Bd7
{[%clk 0:02:36.1]} 16. Qb7 {[%clk 0:02:19.9]} 16... a6 {[%clk 0:02:28.4]} 17.
Bd1 {[%clk 0:02:17.1]} 17... O-O {[%clk 0:02:26]} 18. O-O {[%clk 0:02:14.4]}
18... Nh5 {[%clk 0:02:21.3]} 19. Ba4 {[%clk 0:02:09.2]} 19... Bxa4 {[%clk
0:02:11.4]} 20. Nxa4 {[%clk 0:02:10.1]} 20... Nhf4 {[%clk 0:02:07.4]} 21. Bxf4
{[%clk 0:01:53.7]} 21... Nxf4 {[%clk 0:02:06.1]} 22. Nb6 {[%clk 0:01:50.9]}
22... Rb8 {[%clk 0:01:50.4]} 23. Qc6 {[%clk 0:01:42.3]} 23... Ne2+ {[%clk
0:01:39.8]} 24. Kh1 {[%clk 0:01:41.9]} 24... Nc3 {[%clk 0:01:40.7]} 25. Rb3
{[%clk 0:01:39.9]} 25... Nxe4 {[%clk 0:01:39.2]} 26. a4 {[%clk 0:01:36]} 26...
f5 {[%clk 0:01:31.1]} 27. a5 {[%clk 0:01:34.6]} 27... g5 {[%clk 0:01:27.6]} 28.
Re3 {[%clk 0:01:15.7]} 28... Rf7 {[%clk 0:01:09.1]} 29. Kg1 {[%clk 0:01:10]}
29... Bf8 {[%clk 0:01:02.2]} 30. Rfe1 {[%clk 0:01:08.1]} 30... Rc7 {[%clk
0:00:57.5]} 31. Qa4 {[%clk 0:01:07.8]} 31... Rcb7 {[%clk 0:00:41.1]} 32. Rxe4
{[%clk 0:01:06.1]} 32... fxe4 {[%clk 0:00:42]} 33. Rxe4 {[%clk 0:01:06.5]} 33...
Rxb6 {[%clk 0:00:42.7]} 34. axb6 {[%clk 0:01:05.6]} 34... Rxb6 {[%clk
0:00:42.8]} 35. Nxg5 {[%clk 0:01:05.1]} 35... Bh6 {[%clk 0:00:10.6]} 36. Ne6
{[%clk 0:01:03.6]} 36... Rb1+ {[%clk 0:00:10.6]} 37. Kh2 {[%clk 0:01:02.9]}
37... Qf6 {[%clk 0:00:11.1]} 38. Rg4+ {[%clk 0:00:57.5]} 38... Kh7 {[%clk
0:00:09.8]} 39. Qd7+ {[%clk 0:00:56.1]} 39... Kh8 {[%clk 0:00:09.8]} 40. Qe8+
{[%clk 0:00:54.5]} 40... Bf8 {[%clk 0:00:10.4]} 41. Nxf8 {[%clk 0:00:51.6]} 1-0

[Event "*** Titled Tuesday Blitz"]
[Site "Chess.com"]
[Date "2020.05.12"]
[Round "9"]
[White "Fy_Rakotomaharo"]
[Black "pedroholly22"]
[Result "1-0"]
[WhiteElo "2657"]
[BlackElo "2473"]
[TimeControl "180+1"]
[EndTime "11:43:00 PDT"]
[Termination "Fy_Rakotomaharo won by resignation"]

1. e4 {[%clk 0:03:00.9]} 1... c5 {[%clk 0:02:58.5]} 2. Nf3 {[%clk 0:03:00.9]}
2... Nc6 {[%clk 0:02:57.9]} 3. Bb5 {[%clk 0:03:00]} 3... g6 {[%clk 0:02:57.5]}
4. O-O {[%clk 0:02:59]} 4... Bg7 {[%clk 0:02:55.7]} 5. c3 {[%clk 0:02:59.3]}
5... Nf6 {[%clk 0:02:55.3]} 6. Re1 {[%clk 0:02:59.3]} 6... O-O {[%clk
0:02:53.3]} 7. h3 {[%clk 0:02:59.8]} 7... Ne8 {[%clk 0:02:36]} 8. d4 {[%clk
0:02:55.1]} 8... cxd4 {[%clk 0:02:35]} 9. cxd4 {[%clk 0:02:56]} 9... Nc7 {[%clk
0:02:33.7]} 10. Bf1 {[%clk 0:02:37.6]} 10... d5 {[%clk 0:02:33.3]} 11. e5 {[%clk
0:02:37]} 11... Bf5 {[%clk 0:02:32.6]} 12. Nc3 {[%clk 0:02:31.7]} 12... Rc8
{[%clk 0:02:32.2]} 13. Nh4 {[%clk 0:02:23.2]} 13... Be6 {[%clk 0:02:31.6]} 14.
f4 {[%clk 0:02:23]} 14... Qd7 {[%clk 0:02:31.3]} 15. b3 {[%clk 0:02:12.8]} 15...
f6 {[%clk 0:02:24.1]} 16. Nf3 {[%clk 0:02:05.7]} 16... a6 {[%clk 0:02:15.2]} 17.
Na4 {[%clk 0:02:02.2]} 17... Qd8 {[%clk 0:02:04.4]} 18. Nc5 {[%clk 0:01:58.4]}
18... b6 {[%clk 0:01:47.9]} 19. Nxe6 {[%clk 0:01:52.3]} 19... Nxe6 {[%clk
0:01:47.6]} 20. Bxa6 {[%clk 0:01:52.5]} 20... Rc7 {[%clk 0:01:47]} 21. Be3
{[%clk 0:01:28]} 21... fxe5 {[%clk 0:01:42.2]} 22. fxe5 {[%clk 0:01:28.9]} 22...
h6 {[%clk 0:01:24.6]} 23. Bd3 {[%clk 0:01:26.3]} 23... g5 {[%clk 0:01:23.2]} 24.
Rc1 {[%clk 0:01:23.4]} 24... Nb4 {[%clk 0:01:22]} 25. Bb1 {[%clk 0:01:20]} 25...
Nf4 {[%clk 0:01:17.8]} 26. Bxf4 {[%clk 0:01:14.1]} 26... Rxf4 {[%clk 0:01:17]}
27. Qd2 {[%clk 0:01:13.8]} 27... Nc6 {[%clk 0:01:04.3]} 28. Qd3 {[%clk
0:01:08.4]} 28... e6 {[%clk 0:00:52.1]} 29. Rc3 {[%clk 0:00:40.6]} 29... Nb4
{[%clk 0:00:47]} 30. Qh7+ {[%clk 0:00:40.2]} 30... Kf8 {[%clk 0:00:46.4]} 31.
Rec1 {[%clk 0:00:35.9]} 31... Rxc3 {[%clk 0:00:34.2]} 32. Rxc3 {[%clk
0:00:35.3]} 32... Qa8 {[%clk 0:00:29.7]} 33. Qg6 {[%clk 0:00:25]} 33... Qe8
{[%clk 0:00:20.9]} 34. Qxe8+ {[%clk 0:00:24.7]} 34... Kxe8 {[%clk 0:00:21.2]}
35. a3 {[%clk 0:00:25.1]} 35... Na6 {[%clk 0:00:20.8]} 36. Bd3 {[%clk
0:00:25.4]} 36... Nb8 {[%clk 0:00:20.4]} 37. Rc8+ {[%clk 0:00:25]} 37... Kd7
{[%clk 0:00:20.9]} 38. Rxb8 {[%clk 0:00:25.3]} 38... h5 {[%clk 0:00:21.3]} 39.
Rb7+ {[%clk 0:00:25.3]} 39... Kd8 {[%clk 0:00:21.1]} 40. Rxg7 {[%clk 0:00:26.2]}
40... g4 {[%clk 0:00:21.9]} 41. hxg4 {[%clk 0:00:26.7]} 41... hxg4 {[%clk
0:00:22.6]} 42. Ng5 {[%clk 0:00:26.8]} 42... g3 {[%clk 0:00:22.8]} 43. Nxe6+
{[%clk 0:00:26.8]} 1-0

[Event "*** Titled Tuesday Blitz"]
[Site "Chess.com"]
[Date "2020.05.12"]
[Round "9"]
[White "S_Kalvaitis"]
[Black "Ashedu66"]
[Result "1-0"]
[WhiteElo "2358"]
[BlackElo "2124"]
[TimeControl "180+1"]
[EndTime "11:43:00 PDT"]
[Termination "S_Kalvaitis won on time"]

1. e4 {[%clk 0:03:00.9]} 1... e5 {[%clk 0:02:59.6]} 2. Nf3 {[%clk 0:03:00.3]}
2... Nc6 {[%clk 0:02:59.7]} 3. d4 {[%clk 0:03:00.4]} 3... exd4 {[%clk
0:02:59.3]} 4. Nxd4 {[%clk 0:03:01.2]} 4... Bb4+ {[%clk 0:02:59.2]} 5. Bd2
{[%clk 0:03:00.7]} 5... Qe7 {[%clk 0:02:57.5]} 6. Nxc6 {[%clk 0:02:58.4]} 6...
Qxe4+ {[%clk 0:02:53.8]} 7. Be2 {[%clk 0:02:57.9]} 7... Bxd2+ {[%clk 0:02:50]}
8. Nxd2 {[%clk 0:02:34.5]} 8... Qxc6 {[%clk 0:02:46.7]} 9. O-O {[%clk
0:02:34.2]} 9... d6 {[%clk 0:02:33.8]} 10. Re1 {[%clk 0:02:32.2]} 10... Be6
{[%clk 0:02:32]} 11. Bf3 {[%clk 0:02:17.4]} 11... Qa6 {[%clk 0:02:30.5]} 12. Ne4
{[%clk 0:02:08.8]} 12... Ne7 {[%clk 0:02:21.2]} 13. Ng5 {[%clk 0:02:07.7]} 13...
O-O {[%clk 0:02:16.2]} 14. Nxe6 {[%clk 0:02:07]} 14... fxe6 {[%clk 0:02:15.6]}
15. Rxe6 {[%clk 0:02:07.9]} 15... Ng6 {[%clk 0:02:13.5]} 16. Bd5 {[%clk
0:02:01]} 16... Kh8 {[%clk 0:01:38.5]} 17. Rxg6 {[%clk 0:02:00.7]} 17... hxg6
{[%clk 0:01:37.9]} 18. Qg4 {[%clk 0:01:59.7]} 18... Rf5 {[%clk 0:01:33.7]} 19.
Be4 {[%clk 0:01:43.7]} 19... Rh5 {[%clk 0:00:44.5]} 20. Bxg6 {[%clk 0:01:42.3]}
20... Rh6 {[%clk 0:00:43.3]} 21. Re1 {[%clk 0:01:38.1]} 21... Qxa2 {[%clk
0:00:36.3]} 22. h4 {[%clk 0:01:37.3]} 22... Rf8 {[%clk 0:00:34.4]} 23. h5 {[%clk
0:01:36.1]} 23... Qxb2 {[%clk 0:00:33.9]} 24. Qd7 {[%clk 0:01:01.9]} 24... Qf6
{[%clk 0:00:30.8]} 25. f3 {[%clk 0:00:48.8]} 25... Rxg6 {[%clk 0:00:20]} 26.
hxg6 {[%clk 0:00:49.1]} 26... Qxg6 {[%clk 0:00:20]} 27. Qxc7 {[%clk 0:00:49.6]}
27... Rxf3 {[%clk 0:00:16.6]} 28. Qd8+ {[%clk 0:00:47.4]} 28... Kh7 {[%clk
0:00:14.6]} 29. Re8 {[%clk 0:00:42]} 29... Qg3 {[%clk 0:00:04]} 30. Rh8+ {[%clk
0:00:40.3]} 30... Kg6 {[%clk 0:00:04.3]} 31. Qe8+ {[%clk 0:00:35.6]} 31... Rf7
{[%clk 0:00:04.1]} 32. Qe4+ {[%clk 0:00:35.5]} 32... Kf6 {[%clk 0:00:03.2]} 33.
Rh3 {[%clk 0:00:32.7]} 33... Qe5 {[%clk 0:00:01]} 34. Rf3+ {[%clk 0:00:29.9]}
34... Ke6 {[%clk 0:00:01.2]} 35. Qc4+ {[%clk 0:00:28.6]} 1-0

[Event "*** Titled Tuesday Blitz"]
[Site "Chess.com"]
[Date "2020.05.12"]
[Round "9"]
[White "uchenic"]
[Black "MYMChessAcademy"]
[Result "1-0"]
[WhiteElo "2448"]
[BlackElo "2225"]
[TimeControl "180+1"]
[EndTime "11:43:01 PDT"]
[Termination "uchenic won by resignation"]

1. d4 {[%clk 0:03:00.3]} 1... Nf6 {[%clk 0:02:57.9]} 2. c4 {[%clk 0:03:00.3]}
2... g6 {[%clk 0:02:58.8]} 3. Nc3 {[%clk 0:02:59.9]} 3... Bg7 {[%clk 0:02:59.7]}
4. e4 {[%clk 0:03:00.1]} 4... d6 {[%clk 0:03:00.6]} 5. Nf3 {[%clk 0:03:00]} 5...
O-O {[%clk 0:03:01.5]} 6. Be2 {[%clk 0:02:59.9]} 6... e5 {[%clk 0:03:02.4]} 7.
dxe5 {[%clk 0:03:00.1]} 7... dxe5 {[%clk 0:03:01.5]} 8. Qxd8 {[%clk 0:03:00.7]}
8... Rxd8 {[%clk 0:03:00.9]} 9. Bg5 {[%clk 0:03:01.4]} 9... Re8 {[%clk
0:03:00.8]} 10. O-O-O {[%clk 0:03:00.5]} 10... Nbd7 {[%clk 0:02:54.2]} 11. Nd2
{[%clk 0:02:48.7]} 11... c6 {[%clk 0:02:51.5]} 12. Be3 {[%clk 0:02:36.1]} 12...
Bf8 {[%clk 0:02:47.4]} 13. Nb3 {[%clk 0:02:34.3]} 13... a5 {[%clk 0:02:46.2]}
14. a4 {[%clk 0:02:21.1]} 14... Bb4 {[%clk 0:02:36.4]} 15. f3 {[%clk 0:02:21]}
15... b6 {[%clk 0:02:30.1]} 16. Kc2 {[%clk 0:02:09.4]} 16... Ba6 {[%clk
0:02:27.3]} 17. Rd2 {[%clk 0:01:52.1]} 17... Rab8 {[%clk 0:02:16.9]} 18. Rhd1
{[%clk 0:01:50.9]} 18... Nf8 {[%clk 0:02:17]} 19. g4 {[%clk 0:01:43]} 19... Ne6
{[%clk 0:02:12.3]} 20. g5 {[%clk 0:01:39]} 20... Nh5 {[%clk 0:02:10.8]} 21. Rd7
{[%clk 0:01:35.8]} 21... Nhf4 {[%clk 0:02:05.9]} 22. Ra7 {[%clk 0:01:07.8]}
22... Ra8 {[%clk 0:01:43.1]} 23. Rxa8 {[%clk 0:01:04.2]} 23... Rxa8 {[%clk
0:01:42]} 24. Bf1 {[%clk 0:01:02.4]} 24... Nxg5 {[%clk 0:01:35.8]} 25. Bxb6
{[%clk 0:01:01.5]} 25... Nxf3 {[%clk 0:01:35.6]} 26. Bxa5 {[%clk 0:00:55.2]}
26... c5 {[%clk 0:00:56.8]} 27. Bxb4 {[%clk 0:00:41.2]} 27... cxb4 {[%clk
0:00:56.8]} 28. Nd5 {[%clk 0:00:41.5]} 28... Rc8 {[%clk 0:00:53.9]} 29. Ne7+
{[%clk 0:00:37.5]} 29... Kg7 {[%clk 0:00:53.4]} 30. Nxc8 {[%clk 0:00:37.8]}
30... Nxh2 {[%clk 0:00:52.9]} 31. Nd6 {[%clk 0:00:35.6]} 31... h5 {[%clk
0:00:43.8]} 32. Nc5 {[%clk 0:00:35.1]} 32... Ng4 {[%clk 0:00:36.7]} 33. Nxa6
{[%clk 0:00:29.4]} 33... Ne3+ {[%clk 0:00:36.5]} 34. Kc1 {[%clk 0:00:29.9]}
34... Nxd1 {[%clk 0:00:33.3]} 35. Kxd1 {[%clk 0:00:30.4]} 35... h4 {[%clk
0:00:33]} 36. c5 {[%clk 0:00:30]} 36... g5 {[%clk 0:00:29.1]} 37. c6 {[%clk
0:00:28.3]} 37... Ne6 {[%clk 0:00:29.4]} 38. c7 {[%clk 0:00:27.7]} 38... Nxc7
{[%clk 0:00:29.1]} 39. Nxc7 {[%clk 0:00:28.1]} 39... Kf6 {[%clk 0:00:28.4]} 40.
Nf5 {[%clk 0:00:28]} 40... Kg6 {[%clk 0:00:24.7]} 41. Nd5 {[%clk 0:00:25.4]}
41... Kh5 {[%clk 0:00:23.8]} 42. Nf6+ {[%clk 0:00:25.6]} 42... Kg6 {[%clk
0:00:24.1]} 43. Ng4 {[%clk 0:00:26]} 43... f6 {[%clk 0:00:24.6]} 44. Bh3 {[%clk
0:00:25.8]} 44... b3 {[%clk 0:00:24.3]} 45. Kd2 {[%clk 0:00:26]} 45... Kf7
{[%clk 0:00:23.9]} 46. a5 {[%clk 0:00:26.3]} 46... Kg6 {[%clk 0:00:21.8]} 47. a6
{[%clk 0:00:26.7]} 47... Kh5 {[%clk 0:00:22.2]} 48. a7 {[%clk 0:00:27]} 1-0

[Event "*** Titled Tuesday Blitz"]
[Site "Chess.com"]
[Date "2020.05.12"]
[Round "9"]
[White "CroissantNeuf"]
[Black "Flawless_Fighter"]
[Result "1-0"]
[WhiteElo "2362"]
[BlackElo "2465"]
[TimeControl "180+1"]
[EndTime "11:43:02 PDT"]
[Termination "CroissantNeuf won by resignation"]

1. Nf3 {[%clk 0:03:00.9]} 1... Nf6 {[%clk 0:02:59.5]} 2. g3 {[%clk 0:02:59.9]}
2... e6 {[%clk 0:03:00]} 3. Bg2 {[%clk 0:02:58.4]} 3... d5 {[%clk 0:03:00.6]} 4.
d4 {[%clk 0:02:57]} 4... Be7 {[%clk 0:02:57.6]} 5. c4 {[%clk 0:02:56.5]} 5...
O-O {[%clk 0:02:57.8]} 6. Nc3 {[%clk 0:02:55.6]} 6... dxc4 {[%clk 0:02:53.2]} 7.
Ne5 {[%clk 0:02:55.2]} 7... c5 {[%clk 0:02:51]} 8. dxc5 {[%clk 0:02:53.2]} 8...
Qxd1+ {[%clk 0:02:48]} 9. Nxd1 {[%clk 0:02:53.6]} 9... Bxc5 {[%clk 0:02:47.4]}
10. Nc3 {[%clk 0:02:52.7]} 10... Nc6 {[%clk 0:02:22.1]} 11. Nxc4 {[%clk
0:02:52.2]} 11... Rd8 {[%clk 0:02:17.9]} 12. O-O {[%clk 0:02:51.2]} 12... Bd7
{[%clk 0:02:16.8]} 13. Bf4 {[%clk 0:02:49.9]} 13... Be8 {[%clk 0:02:00.5]} 14.
Rfd1 {[%clk 0:02:39.7]} 14... Ng4 {[%clk 0:01:42.2]} 15. Ne4 {[%clk 0:02:38.9]}
15... Be7 {[%clk 0:01:32.8]} 16. h3 {[%clk 0:02:27.5]} 16... Nf6 {[%clk
0:01:31.5]} 17. Ned6 {[%clk 0:02:27.2]} 17... e5 {[%clk 0:01:14.1]} 18. Nxe8
{[%clk 0:02:16]} 18... exf4 {[%clk 0:01:08.2]} 19. Nxf6+ {[%clk 0:02:09]} 19...
Bxf6 {[%clk 0:01:09.1]} 20. gxf4 {[%clk 0:01:50.3]} 20... Nd4 {[%clk 0:01:08.2]}
21. Kf1 {[%clk 0:01:45.3]} 21... Rac8 {[%clk 0:01:07.7]} 22. Ne5 {[%clk
0:01:39.6]} 22... b5 {[%clk 0:00:56.1]} 23. e3 {[%clk 0:01:32.8]} 23... Ne6
{[%clk 0:00:53.5]} 24. Rac1 {[%clk 0:01:15.5]} 24... Rxd1+ {[%clk 0:00:50.6]}
25. Rxd1 {[%clk 0:01:14.8]} 25... Rc2 {[%clk 0:00:49.3]} 26. Bd5 {[%clk
0:00:57.9]} 26... Rxb2 {[%clk 0:00:39.9]} 27. Nxf7 {[%clk 0:00:49.4]} 27... Kxf7
{[%clk 0:00:38]} 28. f5 {[%clk 0:00:50]} 28... Bh4 {[%clk 0:00:37.9]} 29. Bxe6+
{[%clk 0:00:30]} 29... Kf6 {[%clk 0:00:38]} 30. f4 {[%clk 0:00:30.5]} 30... Rf2+
{[%clk 0:00:37.6]} 31. Kg1 {[%clk 0:00:29.9]} 31... Re2 {[%clk 0:00:37.4]} 32.
Rd7 {[%clk 0:00:26.7]} 32... Re1+ {[%clk 0:00:07.6]} 33. Kg2 {[%clk 0:00:26.3]}
33... Re2+ {[%clk 0:00:07.9]} 34. Kf3 {[%clk 0:00:25.3]} 34... Rf2+ {[%clk
0:00:08.2]} 35. Ke4 {[%clk 0:00:23.4]} 1-0

[Event "*** Titled Tuesday Blitz"]
[Site "Chess.com"]
[Date "2020.05.12"]
[Round "9"]
[White "Grineva_Marianna"]
[Black "czasnaszachy"]
[Result "1-0"]
[WhiteElo "2154"]
[BlackElo "2347"]
[TimeControl "180+1"]
[EndTime "11:43:04 PDT"]
[Termination "Grineva_Marianna won by checkmate"]

1. d4 {[%clk 0:03:00.9]} 1... d5 {[%clk 0:02:45]} 2. c4 {[%clk 0:03:00.6]} 2...
e6 {[%clk 0:02:44.3]} 3. Nc3 {[%clk 0:03:00.6]} 3... c5 {[%clk 0:02:44.3]} 4. e3
{[%clk 0:02:55.1]} 4... Nc6 {[%clk 0:02:42.2]} 5. cxd5 {[%clk 0:02:52.4]} 5...
exd5 {[%clk 0:02:39.2]} 6. Nf3 {[%clk 0:02:51.7]} 6... Nf6 {[%clk 0:02:30.4]} 7.
Bb5 {[%clk 0:02:50]} 7... a6 {[%clk 0:02:22.4]} 8. Be2 {[%clk 0:02:43.9]} 8...
Bd6 {[%clk 0:02:04.5]} 9. O-O {[%clk 0:02:42.4]} 9... O-O {[%clk 0:02:04.2]} 10.
dxc5 {[%clk 0:02:35.6]} 10... Bxc5 {[%clk 0:02:03.9]} 11. b3 {[%clk 0:02:36]}
11... d4 {[%clk 0:01:44.6]} 12. Na4 {[%clk 0:02:35.1]} 12... Ba7 {[%clk
0:01:40.9]} 13. exd4 {[%clk 0:02:28.7]} 13... Nxd4 {[%clk 0:01:40.6]} 14. Bb2
{[%clk 0:02:18]} 14... Nxe2+ {[%clk 0:01:24.9]} 15. Qxe2 {[%clk 0:02:14]} 15...
Re8 {[%clk 0:01:15.2]} 16. Qc2 {[%clk 0:02:12.7]} 16... Bd7 {[%clk 0:01:08.9]}
17. Nc3 {[%clk 0:01:52.6]} 17... Rc8 {[%clk 0:01:00.4]} 18. Rad1 {[%clk
0:01:51.2]} 18... Qc7 {[%clk 0:00:55.3]} 19. Qb1 {[%clk 0:01:35.7]} 19... Bg4
{[%clk 0:00:53.8]} 20. Nd5 {[%clk 0:01:02.5]} 20... Nxd5 {[%clk 0:00:49.5]} 21.
Rxd5 {[%clk 0:01:02.7]} 21... Bxf3 {[%clk 0:00:45.5]} 22. gxf3 {[%clk
0:01:00.4]} 22... Qf4 {[%clk 0:00:39.4]} 23. Qd3 {[%clk 0:00:53.8]} 23... Rc6
{[%clk 0:00:24.5]} 24. Rf5 {[%clk 0:00:43.1]} 24... Qc7 {[%clk 0:00:17.5]} 25.
Kh1 {[%clk 0:00:39.2]} 25... Bb8 {[%clk 0:00:17]} 26. Rh5 {[%clk 0:00:37.9]}
26... Rg6 {[%clk 0:00:14]} 27. Qf5 {[%clk 0:00:20.1]} 27... Qe7 {[%clk
0:00:06.7]} 28. Bd4 {[%clk 0:00:18.9]} 28... Qe1 {[%clk 0:00:04.8]} 29. Qh3
{[%clk 0:00:18.5]} 29... Qd2 {[%clk 0:00:02]} 30. Be3 {[%clk 0:00:18.1]} 30...
Qd3 {[%clk 0:00:01.5]} 31. Rxh7 {[%clk 0:00:15.6]} 31... Bf4 {[%clk 0:00:01.4]}
32. Rh8# {[%clk 0:00:13.6]} 1-0

[Event "*** Titled Tuesday Blitz"]
[Site "Chess.com"]
[Date "2020.05.12"]
[Round "9"]
[White "Vaathi_Coming"]
[Black "Parhamov"]
[Result "0-1"]
[WhiteElo "2862"]
[BlackElo "3016"]
[TimeControl "180+1"]
[EndTime "11:43:05 PDT"]
[Termination "Parhamov won on time"]

1. e4 {[%clk 0:03:00.9]} 1... e5 {[%clk 0:02:58.5]} 2. Nf3 {[%clk 0:03:00.5]}
2... Nc6 {[%clk 0:02:58.5]} 3. Bc4 {[%clk 0:02:59.3]} 3... Bc5 {[%clk
0:02:57.3]} 4. O-O {[%clk 0:02:58.8]} 4... Nf6 {[%clk 0:02:57.2]} 5. d3 {[%clk
0:02:57]} 5... d6 {[%clk 0:02:56.5]} 6. c3 {[%clk 0:02:55.3]} 6... a5 {[%clk
0:02:56.2]} 7. Bb3 {[%clk 0:02:52]} 7... O-O {[%clk 0:02:54.1]} 8. Nbd2 {[%clk
0:02:50.8]} 8... h6 {[%clk 0:02:51.7]} 9. h3 {[%clk 0:02:49]} 9... Re8 {[%clk
0:02:50.9]} 10. Re1 {[%clk 0:02:49.2]} 10... Be6 {[%clk 0:02:50.5]} 11. Bxe6
{[%clk 0:02:40.5]} 11... Rxe6 {[%clk 0:02:49.5]} 12. Nf1 {[%clk 0:02:38.5]}
12... d5 {[%clk 0:02:48.3]} 13. Qc2 {[%clk 0:02:38.3]} 13... Qd7 {[%clk
0:02:47.9]} 14. Ng3 {[%clk 0:02:37.1]} 14... a4 {[%clk 0:02:47.2]} 15. Bd2
{[%clk 0:02:22.8]} 15... b5 {[%clk 0:02:46.7]} 16. b4 {[%clk 0:02:11.8]} 16...
Bf8 {[%clk 0:02:45.8]} 17. a3 {[%clk 0:02:08.8]} 17... g6 {[%clk 0:02:42.4]} 18.
exd5 {[%clk 0:01:57.3]} 18... Nxd5 {[%clk 0:02:41.3]} 19. c4 {[%clk 0:01:57.7]}
19... bxc4 {[%clk 0:02:38.6]} 20. dxc4 {[%clk 0:01:58.6]} 20... Nf4 {[%clk
0:02:34.7]} 21. Rad1 {[%clk 0:01:08.3]} 21... Qd3 {[%clk 0:02:30]} 22. Qc1
{[%clk 0:01:04]} 22... Nxh3+ {[%clk 0:02:22.8]} 23. gxh3 {[%clk 0:00:42]} 23...
Qxf3 {[%clk 0:02:22.3]} 24. Bxh6 {[%clk 0:00:37.7]} 24... Nd4 {[%clk 0:02:20.8]}
25. Bxf8 {[%clk 0:00:24.5]} 25... Rxf8 {[%clk 0:02:21.7]} 26. Re3 {[%clk
0:00:13.2]} 26... Qc6 {[%clk 0:02:21.8]} 27. Qc3 {[%clk 0:00:06.9]} 27... f5
{[%clk 0:02:18.6]} 28. Ne2 {[%clk 0:00:07.1]} 28... Nb3 {[%clk 0:02:13.5]} 29.
Rxe5 {[%clk 0:00:05.9]} 29... Rxe5 {[%clk 0:02:11.3]} 30. Qxe5 {[%clk
0:00:06.8]} 30... Re8 {[%clk 0:02:11.8]} 31. Nd4 {[%clk 0:00:04.5]} 31... Rxe5
{[%clk 0:01:44.1]} 32. Nxc6 {[%clk 0:00:04.2]} 32... Re4 {[%clk 0:01:44.8]} 33.
c5 {[%clk 0:00:03.7]} 33... Rc4 {[%clk 0:01:43.4]} 34. Rd8+ {[%clk 0:00:02.2]}
34... Kg7 {[%clk 0:01:38.9]} 35. Rd7+ {[%clk 0:00:02.7]} 35... Kf6 {[%clk
0:01:39.6]} 36. Rxc7 {[%clk 0:00:03.2]} 36... f4 {[%clk 0:01:26.9]} 37. Na5
{[%clk 0:00:03]} 37... Rc1+ {[%clk 0:01:23.1]} 38. Kg2 {[%clk 0:00:03.2]} 38...
Nd4 {[%clk 0:01:24]} 39. Rd7 {[%clk 0:00:02.6]} 39... Ke5 {[%clk 0:01:20.4]} 40.
Re7+ {[%clk 0:00:02.3]} 40... Kd5 {[%clk 0:01:19.2]} 41. Rd7+ {[%clk 0:00:01.6]}
41... Ke5 {[%clk 0:01:18]} 42. c6 {[%clk 0:00:02.1]} 42... Nf5 {[%clk
0:01:15.5]} 43. c7 {[%clk 0:00:02.1]} 43... Nh4+ {[%clk 0:01:11.8]} 44. Kh2
{[%clk 0:00:02.6]} 44... Ke4 {[%clk 0:01:09.2]} 45. Re7+ {[%clk 0:00:02.6]}
45... Kf3 {[%clk 0:01:07.6]} 46. Rf7 {[%clk 0:00:03]} 46... g5 {[%clk
0:01:03.8]} 47. b5 {[%clk 0:00:02.2]} 47... Kxf2 {[%clk 0:01:03.7]} 48. Rxf4+
{[%clk 0:00:01.8]} 48... gxf4 {[%clk 0:01:03.9]} 0-1